Cogmind - Beta 15 @@@ ROGUE MODE // 2025.08.09 @ 16:04:03 Player: ilja Result: Destroyed by G-34 Mercenary with Small Laser Performance ------------- Evolutions (1) 500 Regions Visited (3) 600 Robots Destroyed (26) 130 Value Destroyed (686) 686 Prototype IDs (1) 20 Alien Tech Used (0) 0 Bonus (0) 0 TOTAL SCORE: 1936 Bonus ------- None Cogmind --------- Core Integrity 0/400 Matter 300/300 Energy 100/100 System Corruption 1% Temperature Cool (6) Movement Core (500) Ox9 Location -9/Storage Parts ------- > --- POWER (1) -------- (None) > --- PROPULSION (2) --- (None) > --- UTILITY (4) ------ Large Storage Unit ECM Suite > --- WEAPON (2) ------- Maul Maul > --- INVENTORY (15) --- Ion Engine Aluminum Leg Hover Unit Improved Terrain Scanner ECM Suite Medium Laser Small Laser Beam Rifle Assault Rifle Light Assault Rifle Guided EMP Blaster Peak State ------------ > --- POWER ------------ Ion Engine > --- PROPULSION ------- Light Treads > --- UTILITY ---------- Large Storage Unit ECM Suite ECM Suite Medium Armor Plating > --- WEAPON ----------- Guided EMP Blaster > --- INVENTORY -------- Ion Engine Light Ion Engine Aluminum Leg Hover Unit Improved Terrain Scanner ECM Suite Medium Laser Small Laser Beam Rifle Assault Rifle Light Assault Rifle Maul Maul [Rating: 20] Favorites ----------- Power Light Ion Engine Engine Light Ion Engine Propulsion Light Treads Treads Light Treads Leg Aluminum Leg Wheel Compact Wheel Utility Large Storage Unit Device ECM Suite Storage Large Storage Unit Processor Targeting Computer Protection Light Armor Plating Weapon Small Laser Energy Gun Small Laser Ballistic Gun Assault Rifle Launcher Grenade Launcher Impact Weapon Maul Build | -11 -10 -9 -9 ------- Run | Yrd Mat Mat Sto Slots Evolved 2 | . . 2 . Power . | . . . . Propulsion . | . . . . Utility 2 | . . 2 . Weapon . | . . . . Parts Attached 30 | 8 2 3 17 Power 4 | 1 . 1 2 Engine 4 | 1 . 1 2 Core . | . . . . Reactor . | . . . . Propulsion 6 | 2 . . 4 Treads 2 | 2 . . . Leg 1 | . . . 1 Wheel 3 | . . . 3 Hover . | . . . . Flight . | . . . . Utility 10 | 3 2 2 3 Device 5 | 2 1 . 2 Storage 2 | 1 1 . . Processor 1 | . . 1 . Hackware . | . . . . Protection 2 | . . 1 1 Artifact . | . . . . Weapon 10 | 2 . . 8 Energy Gun 3 | 1 . . 2 Energy Cannon . | . . . . Ballistic Gun 3 | 1 . . 2 Ballistic Cannon . | . . . . Launcher 2 | . . . 2 Special Weapon . | . . . . Impact Weapon 2 | . . . 2 Slashing Weapon . | . . . . Piercing Weapon . | . . . . Special Melee Weapon . | . . . . Unidentified Prototypes 1 | . . . 1 Parts Lost 13 | . . 2 11 Power 2 | . . . 2 Propulsion 5 | . . 1 4 Utility 5 | . . 1 4 Weapon 1 | . . . 1 Highest Loss Streak 6 | . . 1 6 To Critical Strikes . | . . . . Average Backups 8 | 4 8 9 10 Power 1 | . 1 . 1 Propulsion 2 | 2 2 2 1 Utility 1 | . 1 1 1 Weapon 3 | . 2 4 5 Tool/Special . | . . . . Unused Backups 5 | . 3 . 2 Power . | . . . . Propulsion 4 | . 3 . 1 Utility 1 | . . . 1 Weapon . | . . . . Tool/Special . | . . . . Average Slot Usage (%) 92 | . 100 97 82 Engine 11 | . 14 11 9 Treads 19 | . 28 20 8 Device 20 | . 14 22 27 Storage 12 | . 14 11 11 Processor 1 | . . 5 . Protection 1 | . . 4 2 Energy Gun 11 | . 14 11 9 Ballistic Gun 11 | . 14 10 9 Impact Weapon 1 | . . . 3 Peak Build Rating 20 | 9 8 12 20 Average Rating 9 | 5 7 11 11 On Entrance 6 | . 8 8 11 Naked Turns . | . . . . Heaviest Build 42 | 12 27 33 42 Greatest Support 40 | 40 40 40 20 Greatest Overweight (x) 10 | . . 1 10 Average Overweight (x) . | . . . 1 Largest Inventory Capacity 15 | 8 15 15 15 Average Capacity 12 | 7 9 15 15 Most Carried 15 | 8 9 13 15 Average Carried 8 | 5 8 9 10 Final Capacity 15 | 8 15 15 15 Final Carried 13 | 8 9 13 12 Class Distribution -------------------- 100% | Mutant Dominant Class ---------------- Mutant | -10/Materials Mutant | -9/Materials Mutant | -9/Storage Resources | -11 -10 -9 -9 ----------- Run | Yrd Mat Mat Sto Matter Collected 676 | 289 61 107 219 Remotely . | . . . . Salvage Created 907 | 101 228 176 402 Parts 52 | 9 21 10 12 Haulers Intercepted . | . . . . Recyclers Shooed 1 | . . 1 . Parts Field Recycled . | . . . . Retrieved Matter . | . . . . Parts Self-Destructed . | . . . . Prevented . | . . . . Kills | -11 -10 -9 -9 ------- Run | Yrd Mat Mat Sto Combat Hostiles Destroyed 19 | . 7 3 9 Melee 1 | . . . 1 Guns 14 | . 7 3 4 AOE 2 | . . . 2 Classes Destroyed 7 | 3 3 1 . Worker 1 | 1 . . . Tunneler 1 | 1 . . . Recycler 2 | 1 . . 1 Watcher 3 | . 1 1 1 Swarmer 3 | . 3 . . Grunt 15 | . 4 2 9 Sentry 1 | . . 1 . Best Kill Streak 5 | 1 4 3 5 Combat Bots Only 5 | . 4 2 5 Max Kills in Single Turn 2 | 1 1 2 2 Gunslinging . | . . . . Exploded 1 | . . . 1 Melee 1 | . . . 1 Uniques/NPCs Destroyed . | . . . . Combat | -11 -10 -9 -9 -------- Run | Yrd Mat Mat Sto Hostile Shots Fired 175 | . 21 40 114 Missed 43 | . 6 9 28 Hits 132 | . 15 31 86 Projectile 132 | . 15 31 86 Critical Strikes 1 | . . 1 . Damage Taken 1677 | . 193 433 1051 Core 426 | . 23 53 350 Absorbed by Shields . | . . . . Regen/Repaired (Parts) 108 | . . 108 . Core Remaining (%) 95 | 100 90 . . Volleys Fired 57 | 5 18 15 19 Largest 2 | 2 2 2 2 Hottest 80 | 60 60 60 80 Shots Fired 110 | 8 36 30 36 Gun 104 | 8 36 30 30 Cannon . | . . . . Launcher 6 | . . . 6 Special . | . . . . Kinetic 49 | 3 18 15 13 Thermal 55 | 5 18 15 17 Explosive 4 | . . . 4 Electromagnetic 2 | . . . 2 Robot Hit Streak 12 | 4 12 6 8 Robot Miss Streak 3 | 1 3 1 3 Penetration Max . | . . . . Secondary Targets 1 | . . . 1 Max Gunslinging Chain 1 | . . . 1 Shots Hit Robots 80 | 6 24 24 26 Core Hits 41 | 4 15 7 15 Critical Kills . | . . . . Critical Parts Destroyed 3 | . . . 3 Critical Strikes 5 | . . . 5 Burn 2 | . . . 2 Destroy 1 | . . . 1 Smash 2 | . . . 2 Melee Attacks 9 | . . . 9 Impact 9 | . . . 9 Slashing . | . . . . Piercing . | . . . . Sneak Attacks . | . . . . Combat Hostiles . | . . . . Follow-up Attacks 1 | . . . 1 Damage Inflicted 1458 | 71 302 305 780 Guns 897 | 71 301 305 220 Cannons . | . . . . Explosions 324 | . . . 324 Melee 231 | . . . 231 Ramming 6 | . 1 . 5 Kinetic 411 | 25 147 159 80 Thermal 553 | 46 154 146 207 Explosive 117 | . . . 117 Electromagnetic 140 | . . . 140 Impact 231 | . . . 231 Slashing . | . . . . Piercing . | . . . . Highest Corruption 1 | . . . 1 Average Corruption 1 | . . . 1 Corruption Purged . | . . . . Corruption Blocked . | . . . . Overload Shots . | . . . . Overflow Damage 104 | . . . 104 Projectiles . | . . . . Explosions 4 | . . . 4 Melee 100 | . . . 100 Knockbacks 1 | . . . 1 Impact 1 | . . . 1 Kinetic . | . . . . Secondary . | . . . . Self-Inflicted Damage 99 | . 45 . 54 Shots 4 | . 1 . 3 Rammed 2 | . 1 . 1 Targets Rammed 2 | . 1 . 1 Kicked . | . . . . Crushed . | . . . . Highest Temperature 289 | . 18 42 289 Average Temperature 88 | . 11 16 144 Received Heat Transfer 729 | . 51 168 510 Effects 1 | . . . 1 Energy Bleed 1 | . . . 1 Siege Activations . | . . . . Martial Activations . | . . . . Shielding Activations . | . . . . Robots Disrupted . | . . . . Combat Hostiles . | . . . . Robots Corrupted 2 | . . . 2 Combat Hostiles 2 | . . . 2 Parts Fried . | . . . . Impact Corruptions 4 | . . . 4 Robots Melted . | . . . . Combat Hostiles . | . . . . Parts Melted 1 | . . . 1 Heat Transferred 1430 | 100 350 325 655 Parts Sabotaged . | . . . . Parts Stolen . | . . . . Parts Stripped . | . . . . Power Chain Reactions 1 | . . . 1 Alert | -11 -10 -9 -9 ------- Run | Yrd Mat Mat Sto Maximum Alert Level . | . . . . Low Security (%) 100 | 100 100 100 100 Level 1 . | . . . . Level 2 . | . . . . Level 3 . | . . . . Level 4 . | . . . . Level 5 . | . . . . High Security . | . . . . Max Security . | . . . . Peak Influence 104 | 5 104 49 75 Initial 13 | . . . 13 Average 12 | . 18 4 12 Influence Increases 595 | 15 207 90 283 Destroy 0b10 Robot/C 380 | . 140 60 180 Destroy 0b10 Robot/NC 35 | 15 5 5 10 Destroy Leader 96 | . 32 22 42 Successful Hack 3 | . . 3 . Disable Machine 30 | . 15 . 15 Destroy Structure 36 | . 15 . 21 Partial Spotted 15 | . . . 15 Influence Decreases 544 | 15 207 59 263 Entered New Map 18 | . . . 18 Time Decay 406 | 15 207 49 135 Lost Part 120 | . . 10 110 Squads Dispatched 7 | . 2 1 4 Investigation 2 | . . 1 1 Extermination . | . . . . Reinforcement 4 | . 2 . 2 Assault . | . . . . Garrison 1 | . . . 1 Intercept . | . . . . Searches Triggered . | . . . . Construction Impeded . | . . . . Haulers Reinforced . | . . . . Active Scanning Responses . | . . . . Cargo Convoy Interrupts . | . . . . Stealth | -11 -10 -9 -9 --------- Run | Yrd Mat Mat Sto Distress Signals . | . . . . Communications Jammed . | . . . . Distress Signals . | . . . . Times Spotted 35 | . 13 6 16 Peak Tracking Total 5 | . 3 5 4 Tactical Retreats 3 | . . . 3 Traps | -11 -10 -9 -9 ------- Run | Yrd Mat Mat Sto Traps Triggered 2 | . . 1 1 Indirectly . | . . . . Trap Hack Attempts . | . . . . Triggered . | . . . . Disarmed . | . . . . Reprogrammed . | . . . . Reused . | . . . . Traps Extracted . | . . . . Installed . | . . . . Triggered . | . . . . Machines | -11 -10 -9 -9 ---------- Run | Yrd Mat Mat Sto Machines Disabled 2 | . 1 . 1 Max in Single Turn 1 | . 1 . 1 Machines Repaired . | . . . . Machines Dismantled . | . . . . Machines Sabotaged . | . . . . Overloaded Fab Kills . | . . . . Hacking | -11 -10 -9 -9 --------- Run | Yrd Mat Mat Sto Machines Accessed 7 | . 2 3 2 Terminals 6 | . 2 2 2 Fabricators . | . . . . Repair Stations 1 | . . 1 . Recycling Units . | . . . . Scanalyzers . | . . . . Garrison Access . | . . . . Total Hacks 12 | . 2 6 4 Successful 8 | . 1 6 1 Failed 4 | . 1 . 3 Catastrophic 1 | . . . 1 Database Lockouts . | . . . . Manual 4 | . 2 2 . Terminals 8 | . 2 2 4 Fabricators . | . . . . Repair Stations 4 | . . 4 . Recycling Units . | . . . . Scanalyzers . | . . . . Garrison Access . | . . . . Terminal Hacks 1 | . . . 1 Open Door 1 | . . . 1 Fabricator Hacks . | . . . . Repair Station Hacks 4 | . . 4 . Scan Component 2 | . . 2 . Repair 2 | . . 2 . Recycling Unit Hacks . | . . . . Scanalyzer . | . . . . Garrison Access Hacks . | . . . . Unauthorized Hacks 3 | . 1 2 . Terminals 3 | . 1 2 . Botnet 3 | . 1 2 . Fabricators . | . . . . Repair Stations . | . . . . Recycling Units . | . . . . Scanalyzers . | . . . . Garrison Access . | . . . . Data Cores Recovered . | . . . . Used . | . . . . Hacking Detections 1 | . . . 1 Full Trace Events 1 | . . . 1 Feedback Events . | . . . . Feedback Blocked . | . . . . Robot Schematics Acquired . | . . . . Robots Built . | . . . . Authchips . | . . . . Time . | . . . . Total Robot Build Rating . | . . . . Part Schematics Acquired . | . . . . Parts Built . | . . . . Authchips . | . . . . Time . | . . . . Total Part Build Rating . | . . . . Parts Repaired 2 | . . 2 . Time 52 | . . 52 . Parts Recycled . | . . . . Recycled Matter . | . . . . Retrieved Matter . | . . . . Retrieved Components . | . . . . Parts Scanalyzed . | . . . . Part Schematics Acquired . | . . . . Parts Damaged . | . . . . Bothacking | -11 -10 -9 -9 ------------ Run | Yrd Mat Mat Sto Used RIF Installer . | . . . . Robots Hacked . | . . . . Non-combat . | . . . . Combat . | . . . . Robot Hacks Applied . | . . . . Relay Couplers Released . | . . . . Fabnet Peak Effective % . | . . . . Robots Rewired . | . . . . Allies Hacked . | . . . . Hacks Repelled . | . . . . Allies | -11 -10 -9 -9 -------- Run | Yrd Mat Mat Sto Total Allies . | . . . . Largest Group . | . . . . Highest-Rated Group . | . . . . Highest-Rated Ally . | . . . . Total Orders . | . . . . Ally Attacks . | . . . . Total Damage . | . . . . Kills . | . . . . Allies Corrupted . | . . . . Allies Melted . | . . . . Intel | -11 -10 -9 -9 ------- Run | Yrd Mat Mat Sto Active Infowar (turns) 2234 | 63 1008 426 737 Terrain 754 | 3 . 426 325 Seismic 1529 | 60 1008 426 35 ECM 631 | . . . 631 Robot Analysis Total . | . . . . Derelict Logs Recovered . | . . . . Drone Launches . | . . . . Drone Recoveries . | . . . . Exploration | -11 -10 -9 -9 ------------- Run | Yrd Mat Mat Sto Turns Passed 2588 | 238 1011 426 913 Spaces Moved 1207 | 131 580 189 307 Core 14 | 3 . . 11 Treads 1169 | 128 580 189 272 Legs 5 | . . . 5 Wheels 19 | . . . 19 Hover . | . . . . Flight . | . . . . Fastest Speed 50 | 50 160 160 130 Average Speed 181 | 157 160 162 244 Slowest Speed 550 | 160 160 240 550 Overloaded Moves . | . . . . Propulsion Burnouts . | . . . . Robots Hopped . | . . . . Potential Cave-ins . | . . . . Cave-ins Triggered . | . . . . Exploration Rate (%) 30 | 8 64 11 37 Regions Visited 3 Branch Regions 1 Pre-discovered Areas . | . . . . Known Exits Taken . | . . . . Unknown Exits Taken 3 | 1 1 1 . Scrap Searched . | . . . . Spaces Dug . | . . . . Terrain Destroyed 38 | . 19 . 19 Melee . | . . . . Projectile . | . . . . AOE 38 | . 19 . 19 Terrain Rammed . | . . . . Walls Destroyed . | . . . . Machines Disabled . | . . . . Actions | -11 -10 -9 -9 --------- Run | Yrd Mat Mat Sto Total 1474 | 151 629 278 416 Wait 130 | . 20 60 50 Move 1204 | 130 579 188 307 Hop . | . . . . Pick Up 23 | 7 4 8 4 Fast Attach 13 | 8 1 2 2 Attach 14 | . . 4 10 Detach 4 | 1 . . 3 Swap 9 | . 1 . 8 Drop 8 | . 5 1 2 Fire 57 | 5 18 15 19 Melee 8 | . . . 8 Ram . | . . . . Kick . | . . . . Crush 2 | . 1 . 1 Escape Stasis 2 | . . . 2 Rewire . | . . . . Trap . | . . . . Miscellaneous . | . . . . Route ------- -11/Scrapyard -10/Materials (discovered 2 exits: *Mat / [*Min]) -9/Materials -9/Storage History --------- Turn | Location | Event 16 | -11/Scrapyard | Discovered new exit (range 14) 239 | -11/Scrapyard | Entered Materials 321 | -10/Materials | Build established: Mutant 478 | -10/Materials | Discovered new exit (range 15) 650 | -10/Materials | Discovered new exit (range 12) 1250 | -10/Materials | Entered another Materials area 1250 | -9/Materials | Evolved 2 slots: Utility x2 1305 | -9/Materials | Repaired Lgt. Treads 1341 | -9/Materials | Repaired Assault Rifle 1429 | -9/Materials | Discovered new exit (range 15) 1676 | -9/Materials | Entered Storage 1711 | -9/Storage | Garrison activated, responded to threat 1770 | -9/Storage | Lost 6 parts (3n2u1w) 2520 | -9/Storage | Core integrity fell below 50% 2575 | -9/Storage | Core integrity fell below 20% 2589 | -9/Storage | Destroyed by G-34 Mercenary with Small Laser Last Messages --------------- 02480_ R-06 Scavenger collects Hover Unit. 02507_ U-05 Engineer builds a Wall. 02517_ U-05 Engineer lays Concrete. 02520_ U-05 Engineer builds a Wall. 02524_ U-05 Engineer lays Concrete. 02537_ Lgt. Treads destroyed. 02537_ U-05 Engineer lays Concrete. 02544_ U-05 Engineer builds a Door. 02555_ Maul follow-up attack on G-34 Mercenary. 02555_ U-05 Engineer lays Concrete. 02559_ Lgt. Ion Engine destroyed. 02564_ Destroyed Heat Sink. 02564_ G-34 Mercenary system corrupted by crushing effect. 02564_ G-34 Mercenary destroyed. 02570_ ECM Suite destroyed. 02583_ G-34 Mercenary suffers critical hit (Smash). 02583_ Destroyed Ion Engine. 02583_ Destroyed Heat Sink. 02583_ G-34 Mercenary system corrupted by crushing effect. 02584_ G-34 Mercenary system terminally corrupted. Map ----- +----------------------------------------------------+ | ??????????????????????????????? | | ??????????????????????????????? | | ?????????????????????########## | | ?????????????????????# = %# | | ?????????????????????# # | | ?????????????????????# # | | ?????????????????????# ! # | | ??????##?????????????# # | | ?????# ?????????????#! # | | ?????# ""??? ?##????# # | | ?????# "T" #????# # | | ?????" !!!#?????# ! # | | ?????T """ !!!#?????###+###+## | | ?????" """ !!!?######## | | ?????# """ ??# + | | ?????# ? ???###T# | | ?????#+###+##########+## #### | | ?????# + ## #??? | | ?????# # "" ## #??? | | ?????# # "" ## #??? | | ?????# # """ ## #??? | | ?????# % %+ ## #??? | | ?????# #% ## #??? | | ?????# # ## #??? | | ?????#= # ## +??? | | ??####@## ########+##? #??? | | # %% # #??????# ??? #??? | | # o # #??????#/??? #??? | | # gY #??????? ??? #??? | | # # #???????"??? ???? | | #""" # #?????????????????? | | #""" + #?????????????????? | | #""" # #?????????????????? | | #""" #^ #?????????????????? | | ??"" #^ #?????????????????? | | ?? # #?????????????????? | | ?? # #?????????????????? | | ??#"T"### ??????????????????? | | ??#"""????????????????????????? | | ??????????????????????????????? | | ??????????????????????????????? | | ??????????????????????????????? | | ??????????????????????????????? | | ??????????????????????????????? | | ??????????????????????????????? | | ??????????????????????????????? | | ??????????????????????????????? | | ??????????????????????????????? | | ??????????????????????????????? | | ??????????????????????????????? | +----------------------------------------------------+ Best States ------------- Heat Dissipation 28 Energy Generation 10 Energy Capacity 250 Matter Stores 300 Matter Capacity 300 Sight Range 16 Terrain Scan Range 16 Terrain Scan Density 10 ECM Strength 2 Armor Coverage 225 Evasion (%) 40 Targeting Accuracy 5 Recoil Reduction 2 Item Schematics ----------------- None Robot Schematics ------------------ None Fabricated ------------ Nothing Repaired ---------- Lgt. Treads | 60% | -9/Materials Assault Rifle | 47% | -9/Materials Alien Tech Used ----------------- None Achievements -------------- None Challenges ------------ None Game ------ Seed EnergyFissionActivator Manual? 0 Play Time 00:26:50 Cumulative 9.5 hours Start 2025.08.09 @ 15:36:20 End 2025.08.09 @ 16:04:03 Sessions 1 Manual Loads 0 Difficulty Rogue Special Mode None Game No. 21 Rogue 21 Adventurer 0 Explorer 0 Win Type - Total 0 Types 0/0/0/0/0/0/0/0/0/0 Lore% 6 Gallery% 11 Achievement% 10 Wizard Run 0 Options --------- Layout 0 ASCII 0 Keyboard 0 Movement Arrows Keybinds 0 Fullscreen 1 Font 20/SmallcapsGlow Map View 66x50 Zoom Use 0% Tactical HUD 1 Map Filters NONE Filters NONE Steam 1 RUN: 5298408a-5efd-471c-bcb0-b0b07c1502d7